[Event "*** SCC Grand Prix: Titled Tuesday Blitz"]
[Site "Chess.com"]
[Date "2020.07.07"]
[Round "3"]
[White "Andrii_Prydun"]
[Black "stoleriu"]
[Result "1/2-1/2"]
[WhiteElo "2405"]
[BlackElo "2585"]
[TimeControl "180+1"]
[EndTime "10:27:33 PDT"]
[Termination "Game drawn by agreement"]

1. d4 {[%clk 0:03:00.9]} 1... e6 {[%clk 0:02:58.9]} 2. Nc3 {[%clk 0:03:01.4]}
2... Nf6 {[%clk 0:02:54.5]} 3. e4 {[%clk 0:03:01.4]} 3... d5 {[%clk 0:02:54.5]}
4. Bg5 {[%clk 0:03:00.8]} 4... Bb4 {[%clk 0:02:54.3]} 5. Ne2 {[%clk 0:03:00.5]}
5... h6 {[%clk 0:02:54.5]} 6. Bxf6 {[%clk 0:02:51.4]} 6... Qxf6 {[%clk
0:02:55.4]} 7. a3 {[%clk 0:02:48.9]} 7... Bf8 {[%clk 0:02:49.5]} 8. exd5 {[%clk
0:02:41.3]} 8... g6 {[%clk 0:02:48.8]} 9. dxe6 {[%clk 0:02:01.6]} 9... Bxe6
{[%clk 0:02:49.7]} 10. Qd2 {[%clk 0:01:58.1]} 10... h5 {[%clk 0:02:47.4]} 11. d5
{[%clk 0:01:55.8]} 11... Bh6 {[%clk 0:02:45.5]} 12. Qd4 {[%clk 0:01:55.1]} 12...
Qxd4 {[%clk 0:02:46.1]} 13. Nxd4 {[%clk 0:01:55.1]} 13... Bd7 {[%clk 0:02:46.7]}
14. Bb5 {[%clk 0:01:49.8]} 14... O-O {[%clk 0:02:46.2]} 15. O-O {[%clk
0:01:45.3]} 15... a6 {[%clk 0:02:46.5]} 16. Bxd7 {[%clk 0:01:44.8]} 16... Nxd7
{[%clk 0:02:47.4]} 17. Rad1 {[%clk 0:01:43.8]} 17... Nf6 {[%clk 0:02:45.6]} 18.
Rfe1 {[%clk 0:01:40.3]} 18... Rad8 {[%clk 0:02:46]} 19. Nb3 {[%clk 0:01:35.5]}
19... b6 {[%clk 0:02:42.8]} 20. h3 {[%clk 0:01:32.2]} 20... Rfe8 {[%clk
0:02:40.2]} 21. a4 {[%clk 0:01:31.5]} 21... Rxe1+ {[%clk 0:02:29.4]} 22. Rxe1
{[%clk 0:01:31.7]} 22... Nxd5 {[%clk 0:02:30.2]} 23. Rd1 {[%clk 0:01:31.9]}
23... c6 {[%clk 0:02:30.6]} 24. Nxd5 {[%clk 0:01:31.9]} 24... Rxd5 {[%clk
0:02:24.3]} 25. Rxd5 {[%clk 0:01:31.9]} 25... cxd5 {[%clk 0:02:25.2]} 26. a5
{[%clk 0:01:29.7]} 26... bxa5 {[%clk 0:02:26.1]} 27. Nxa5 {[%clk 0:01:29.4]}
27... Bc1 {[%clk 0:02:14.2]} 28. b3 {[%clk 0:01:25.6]} 28... Kg7 {[%clk
0:02:07.9]} 29. Nc6 {[%clk 0:01:23.2]} 29... Bd2 {[%clk 0:02:07.9]} 30. Kf1
{[%clk 0:01:20.7]} 30... Kf6 {[%clk 0:02:07.2]} 31. Ke2 {[%clk 0:01:20.8]} 31...
Bc3 {[%clk 0:02:05.1]} 32. Ke3 {[%clk 0:01:04.5]} 32... Ke6 {[%clk 0:02:02.2]}
33. Nd4+ {[%clk 0:00:59.1]} 33... Ke5 {[%clk 0:01:43.2]} 34. Ne2 {[%clk
0:00:56.9]} 34... Ba5 {[%clk 0:01:39.6]} 35. f4+ {[%clk 0:00:44.6]} 35... Kd6
{[%clk 0:01:39.6]} 36. f5 {[%clk 0:00:40.2]} 36... Ke5 {[%clk 0:01:38.1]} 37.
fxg6 {[%clk 0:00:39.5]} 37... fxg6 {[%clk 0:01:36.8]} 38. Kd3 {[%clk 0:00:25.6]}
1/2-1/2

[Event "*** SCC Grand Prix: Titled Tuesday Blitz"]
[Site "Chess.com"]
[Date "2020.07.07"]
[Round "3"]
[White "j2806"]
[Black "Hippotaner"]
[Result "0-1"]
[WhiteElo "2058"]
[BlackElo "2307"]
[TimeControl "180+1"]
[EndTime "10:27:33 PDT"]
[Termination "Hippotaner won by checkmate"]

1. e4 {[%clk 0:03:00.9]} 1... e5 {[%clk 0:02:58.8]} 2. Nf3 {[%clk 0:03:00.5]}
2... Nc6 {[%clk 0:02:57.9]} 3. Bb5 {[%clk 0:03:00.5]} 3... a6 {[%clk 0:02:56.1]}
4. Ba4 {[%clk 0:03:00.7]} 4... Nf6 {[%clk 0:02:56.1]} 5. d3 {[%clk 0:03:00.7]}
5... d6 {[%clk 0:02:52.5]} 6. c3 {[%clk 0:03:00.4]} 6... g6 {[%clk 0:02:51.9]}
7. O-O {[%clk 0:03:00]} 7... Bg7 {[%clk 0:02:51.8]} 8. Nbd2 {[%clk 0:02:58]}
8... O-O {[%clk 0:02:51.9]} 9. h3 {[%clk 0:02:57.5]} 9... Nd7 {[%clk 0:02:48.3]}
10. Re1 {[%clk 0:02:57.2]} 10... Nc5 {[%clk 0:02:48.5]} 11. Bc2 {[%clk
0:02:56.4]} 11... f5 {[%clk 0:02:48.7]} 12. Nf1 {[%clk 0:02:29.8]} 12... f4
{[%clk 0:02:48.4]} 13. d4 {[%clk 0:02:26.7]} 13... Nd7 {[%clk 0:02:33.1]} 14. d5
{[%clk 0:02:17.9]} 14... Ne7 {[%clk 0:02:33.3]} 15. c4 {[%clk 0:02:14.7]} 15...
a5 {[%clk 0:02:32.6]} 16. a3 {[%clk 0:02:14.1]} 16... Nc5 {[%clk 0:02:32.5]} 17.
Bd2 {[%clk 0:02:07.8]} 17... a4 {[%clk 0:02:32.6]} 18. Bc3 {[%clk 0:01:57.8]}
18... b6 {[%clk 0:02:28.9]} 19. Bb4 {[%clk 0:01:47]} 19... Bd7 {[%clk
0:02:28.1]} 20. N1d2 {[%clk 0:01:36.1]} 20... h6 {[%clk 0:02:27.4]} 21. Nb1
{[%clk 0:01:34.5]} 21... g5 {[%clk 0:02:27.7]} 22. Nh2 {[%clk 0:01:29.9]} 22...
Ng6 {[%clk 0:02:27]} 23. Nc3 {[%clk 0:01:26.8]} 23... Qe8 {[%clk 0:02:27]} 24.
Bxc5 {[%clk 0:01:20]} 24... bxc5 {[%clk 0:02:26.6]} 25. b4 {[%clk 0:01:11.4]}
25... axb3 {[%clk 0:02:25.8]} 26. Bxb3 {[%clk 0:01:11.2]} 26... Nh4 {[%clk
0:02:26.1]} 27. f3 {[%clk 0:01:07.5]} 27... h5 {[%clk 0:02:25.4]} 28. a4 {[%clk
0:01:02.3]} 28... Qc8 {[%clk 0:02:20.6]} 29. Qe2 {[%clk 0:00:46.7]} 29... Rb8
{[%clk 0:02:20.4]} 30. Reb1 {[%clk 0:00:45.5]} 30... Kh7 {[%clk 0:02:12.8]} 31.
a5 {[%clk 0:00:45]} 31... Rg8 {[%clk 0:02:12.8]} 32. a6 {[%clk 0:00:44.4]} 32...
Bh6 {[%clk 0:02:11.8]} 33. Nb5 {[%clk 0:00:41.3]} 33... Bxh3 {[%clk 0:02:07.4]}
34. gxh3 {[%clk 0:00:38.4]} 34... Qxh3 {[%clk 0:02:08.3]} 35. Kh1 {[%clk
0:00:26.8]} 35... g4 {[%clk 0:02:05.9]} 36. Qf1 {[%clk 0:00:23.3]} 36... Qg3
{[%clk 0:01:55.2]} 37. Qg1 {[%clk 0:00:22.1]} 37... gxf3 {[%clk 0:01:52.3]} 38.
a7 {[%clk 0:00:18.3]} 38... Qg2+ {[%clk 0:01:44.9]} 39. Qxg2 {[%clk 0:00:17.3]}
39... fxg2+ {[%clk 0:01:45.8]} 40. Kg1 {[%clk 0:00:17.6]} 40... f3 {[%clk
0:01:46.7]} 41. axb8=Q {[%clk 0:00:16]} 41... Be3# {[%clk 0:01:46.7]} 0-1

[Event "*** SCC Grand Prix: Titled Tuesday Blitz"]
[Site "Chess.com"]
[Date "2020.07.07"]
[Round "3"]
[White "Julianos82"]
[Black "TurboSteen"]
[Result "0-1"]
[WhiteElo "2250"]
[BlackElo "1967"]
[TimeControl "180+1"]
[EndTime "10:27:38 PDT"]
[Termination "TurboSteen won by checkmate"]

1. d4 {[%clk 0:03:00.9]} 1... Nf6 {[%clk 0:02:58.4]} 2. Nf3 {[%clk 0:03:00.4]}
2... g6 {[%clk 0:02:57.8]} 3. c4 {[%clk 0:02:59.6]} 3... Bg7 {[%clk 0:02:56.5]}
4. Nc3 {[%clk 0:03:00.1]} 4... d5 {[%clk 0:02:56.1]} 5. cxd5 {[%clk 0:03:01]}
5... Nxd5 {[%clk 0:02:54.9]} 6. Na4 {[%clk 0:03:01.5]} 6... Nf6 {[%clk
0:02:53.2]} 7. g3 {[%clk 0:02:56.2]} 7... O-O {[%clk 0:02:50.9]} 8. Bg2 {[%clk
0:02:56.2]} 8... Bd7 {[%clk 0:02:49.1]} 9. Nc5 {[%clk 0:02:55]} 9... b6 {[%clk
0:02:47]} 10. Nxd7 {[%clk 0:02:52.4]} 10... Nbxd7 {[%clk 0:02:45.2]} 11. O-O
{[%clk 0:02:51.6]} 11... c5 {[%clk 0:02:43.4]} 12. b3 {[%clk 0:02:24.5]} 12...
e5 {[%clk 0:02:35.3]} 13. Nxe5 {[%clk 0:02:13.4]} 13... Nxe5 {[%clk 0:02:32.5]}
14. dxe5 {[%clk 0:02:12.3]} 14... Ng4 {[%clk 0:02:32.2]} 15. Bxa8 {[%clk
0:02:06.6]} 15... Qxa8 {[%clk 0:02:25.5]} 16. Bb2 {[%clk 0:02:04.6]} 16... Nxe5
{[%clk 0:02:22.3]} 17. Qc2 {[%clk 0:02:01.8]} 17... h5 {[%clk 0:02:18.3]} 18. h4
{[%clk 0:02:00.1]} 18... Qc8 {[%clk 0:02:15.4]} 19. Kg2 {[%clk 0:01:53.3]} 19...
Qc6+ {[%clk 0:02:10.3]} 20. e4 {[%clk 0:01:40.4]} 20... f5 {[%clk 0:02:02.4]}
21. Rae1 {[%clk 0:01:33]} 21... f4 {[%clk 0:01:57.8]} 22. f3 {[%clk 0:01:26]}
22... fxg3 {[%clk 0:01:52.3]} 23. Bxe5 {[%clk 0:01:21.4]} 23... Bxe5 {[%clk
0:01:49.9]} 24. Qc4+ {[%clk 0:01:21.5]} 24... Kg7 {[%clk 0:01:47]} 25. Rd1
{[%clk 0:01:21.3]} 25... Rf4 {[%clk 0:01:43.4]} 26. Qd5 {[%clk 0:01:13.8]} 26...
Qf6 {[%clk 0:01:40.5]} 27. Qd7+ {[%clk 0:01:12]} 27... Kh6 {[%clk 0:01:39.1]}
28. Qe8 {[%clk 0:00:57.7]} 28... Rxh4 {[%clk 0:01:36.5]} 29. Rh1 {[%clk
0:00:57.4]} 29... Rh2+ {[%clk 0:01:34.9]} 30. Rxh2 {[%clk 0:00:57]} 30... gxh2
{[%clk 0:01:34.2]} 31. Qd8 {[%clk 0:00:27.9]} 31... Qf4 {[%clk 0:01:25.8]} 32.
Rd3 {[%clk 0:00:17.2]} 32... h1=Q+ {[%clk 0:01:22.5]} 33. Kxh1 {[%clk
0:00:17.4]} 33... Qh2# {[%clk 0:01:22.1]} 0-1

[Event "*** SCC Grand Prix: Titled Tuesday Blitz"]
[Site "Chess.com"]
[Date "2020.07.07"]
[Round "3"]
[White "Alexsur1981"]
[Black "Ural_bogatyr"]
[Result "1-0"]
[WhiteElo "2661"]
[BlackElo "2344"]
[TimeControl "180+1"]
[EndTime "10:27:39 PDT"]
[Termination "Alexsur1981 won by resignation"]

1. e4 {[%clk 0:03:00.9]} 1... e5 {[%clk 0:02:59.2]} 2. f4 {[%clk 0:02:59.6]}
2... Nc6 {[%clk 0:02:59.2]} 3. Nf3 {[%clk 0:02:58.9]} 3... d5 {[%clk 0:02:48]}
4. exd5 {[%clk 0:02:57.5]} 4... Qxd5 {[%clk 0:02:48.9]} 5. Nc3 {[%clk
0:02:56.8]} 5... Qe6 {[%clk 0:02:46.6]} 6. fxe5 {[%clk 0:02:56.6]} 6... Nxe5
{[%clk 0:02:45.6]} 7. Nxe5 {[%clk 0:02:57.5]} 7... Qxe5+ {[%clk 0:02:45.2]} 8.
Qe2 {[%clk 0:02:58]} 8... Qxe2+ {[%clk 0:02:40.2]} 9. Bxe2 {[%clk 0:02:58.9]}
9... Be6 {[%clk 0:02:29]} 10. Nb5 {[%clk 0:02:54.7]} 10... Kd7 {[%clk
0:02:19.3]} 11. d4 {[%clk 0:02:52.5]} 11... Re8 {[%clk 0:02:07.5]} 12. O-O
{[%clk 0:02:47.3]} 12... c6 {[%clk 0:02:04.4]} 13. Nc3 {[%clk 0:02:46.1]} 13...
Nf6 {[%clk 0:02:02]} 14. Bf3 {[%clk 0:02:32.7]} 14... Bd6 {[%clk 0:01:50.3]} 15.
Bg5 {[%clk 0:02:28.4]} 15... Nd5 {[%clk 0:01:07]} 16. Ne4 {[%clk 0:02:27.7]}
16... f6 {[%clk 0:01:03.2]} 17. Bd2 {[%clk 0:02:24.4]} 17... b6 {[%clk
0:00:57.6]} 18. Nxd6 {[%clk 0:02:16.9]} 18... Kxd6 {[%clk 0:00:58.5]} 19. c4
{[%clk 0:02:16.4]} 19... Ne7 {[%clk 0:00:54.7]} 20. b3 {[%clk 0:02:13.8]} 20...
Nf5 {[%clk 0:00:50.4]} 21. Bf4+ {[%clk 0:02:08.7]} 21... Kd7 {[%clk 0:00:47.1]}
22. d5 {[%clk 0:02:09.6]} 22... cxd5 {[%clk 0:00:45.1]} 23. cxd5 {[%clk
0:02:10.5]} 23... Bf7 {[%clk 0:00:44.9]} 24. Bg4 {[%clk 0:02:09]} 24... g6
{[%clk 0:00:42.2]} 25. Bg3 {[%clk 0:02:05]} 25... Bxd5 {[%clk 0:00:28.5]} 26.
Bxf5+ {[%clk 0:02:03.8]} 26... gxf5 {[%clk 0:00:27.8]} 27. Rxf5 {[%clk
0:02:00.6]} 27... Be4 {[%clk 0:00:17.6]} 28. Rxf6 {[%clk 0:01:58.4]} 28... Kc8
{[%clk 0:00:14.9]} 29. Rc1+ {[%clk 0:01:56]} 29... Kb7 {[%clk 0:00:14.8]} 30.
Rc7+ {[%clk 0:01:55.1]} 30... Ka6 {[%clk 0:00:14.8]} 31. Rff7 {[%clk 0:01:55.7]}
31... Ra8 {[%clk 0:00:12.6]} 32. a4 {[%clk 0:01:51.4]} 32... Rhe8 {[%clk
0:00:12.2]} 33. b4 {[%clk 0:01:49.7]} 33... Bd5 {[%clk 0:00:11.5]} 34. Rxh7
{[%clk 0:01:48.5]} 34... Re2 {[%clk 0:00:10.2]} 35. Bf2 {[%clk 0:01:45.8]} 35...
Rc2 {[%clk 0:00:09.2]} 36. Rxc2 {[%clk 0:01:43.8]} 1-0

[Event "*** SCC Grand Prix: Titled Tuesday Blitz"]
[Site "Chess.com"]
[Date "2020.07.07"]
[Round "3"]
[White "Susal_De_Silva"]
[Black "timedothwasteme"]
[Result "1/2-1/2"]
[WhiteElo "2362"]
[BlackElo "2138"]
[TimeControl "180+1"]
[EndTime "10:27:41 PDT"]
[Termination "Game drawn by agreement"]

1. e4 {[%clk 0:03:00.9]} 1... c5 {[%clk 0:00:53.8]} 2. Nf3 {[%clk 0:02:54.6]}
2... Nc6 {[%clk 0:00:52.8]} 3. Bb5 {[%clk 0:02:54]} 3... Nf6 {[%clk 0:00:52.7]}
4. Nc3 {[%clk 0:02:53]} 4... g6 {[%clk 0:00:50.7]} 5. O-O {[%clk 0:02:52.4]}
5... Bg7 {[%clk 0:00:49.3]} 6. Re1 {[%clk 0:02:51.6]} 6... O-O {[%clk
0:00:48.8]} 7. Bf1 {[%clk 0:02:47.8]} 7... d6 {[%clk 0:00:49.1]} 8. d3 {[%clk
0:02:47.8]} 8... Bg4 {[%clk 0:00:49.6]} 9. Be3 {[%clk 0:02:45.8]} 9... Nd4
{[%clk 0:00:49.4]} 10. Bxd4 {[%clk 0:02:45.2]} 10... cxd4 {[%clk 0:00:50.3]} 11.
Nb1 {[%clk 0:02:45.8]} 11... e5 {[%clk 0:00:50.9]} 12. Nbd2 {[%clk 0:02:45.3]}
12... Re8 {[%clk 0:00:49.7]} 13. h3 {[%clk 0:02:45.8]} 13... Bxf3 {[%clk
0:00:49.3]} 14. Nxf3 {[%clk 0:02:45.8]} 14... d5 {[%clk 0:00:49.7]} 15. Nd2
{[%clk 0:02:40.5]} 15... dxe4 {[%clk 0:00:49.5]} 16. Nxe4 {[%clk 0:02:41.2]}
16... Nxe4 {[%clk 0:00:49.7]} 17. Rxe4 {[%clk 0:02:41.9]} 17... f5 {[%clk
0:00:49.7]} 18. Re1 {[%clk 0:02:42.3]} 18... e4 {[%clk 0:00:48.9]} 19. g3 {[%clk
0:02:41.2]} 19... e3 {[%clk 0:00:48.7]} 20. Bg2 {[%clk 0:02:38.7]} 20... Qg5
{[%clk 0:00:47]} 21. Bxb7 {[%clk 0:02:34.5]} 21... Rab8 {[%clk 0:00:45.9]} 22.
Bd5+ {[%clk 0:02:32.9]} 22... Kh8 {[%clk 0:00:46.2]} 23. b3 {[%clk 0:02:31.2]}
23... exf2+ {[%clk 0:00:44.4]} 24. Kxf2 {[%clk 0:02:31]} 24... Re3 {[%clk
0:00:44.5]} 25. Rxe3 {[%clk 0:02:27.6]} 25... dxe3+ {[%clk 0:00:43.3]} 26. Kg2
{[%clk 0:02:23.8]} 26... f4 {[%clk 0:00:43.5]} 27. Rb1 {[%clk 0:02:16.5]} 27...
Qxd5+ {[%clk 0:00:42.4]} 28. Qf3 {[%clk 0:02:15.4]} 28... Qxf3+ {[%clk
0:00:40.3]} 29. Kxf3 {[%clk 0:02:15.9]} 29... fxg3 {[%clk 0:00:40.5]} 30. Kxg3
{[%clk 0:02:16.3]} 30... Bd4 {[%clk 0:00:40]} 31. Kf3 {[%clk 0:02:15.8]} 31...
Rf8+ {[%clk 0:00:39.3]} 32. Ke4 {[%clk 0:02:16.2]} 32... e2 {[%clk 0:00:39.9]}
33. Re1 {[%clk 0:02:14.2]} 33... Bc3 {[%clk 0:00:34]} 34. Rxe2 {[%clk
0:02:13.2]} 34... Re8+ {[%clk 0:00:33.8]} 35. Kf3 {[%clk 0:02:13.8]} 35... Rxe2
{[%clk 0:00:33.3]} 36. Kxe2 {[%clk 0:02:14.5]} 36... Kg7 {[%clk 0:00:33.9]} 37.
Ke3 {[%clk 0:02:14.9]} 37... Kf6 {[%clk 0:00:33]} 38. d4 {[%clk 0:02:15.4]}
38... a5 {[%clk 0:00:32.4]} 39. Kd3 {[%clk 0:02:15.8]} 39... Bb4 {[%clk
0:00:31.1]} 40. c4 {[%clk 0:02:16.3]} 40... Ke6 {[%clk 0:00:31.4]} 41. Ke4
{[%clk 0:02:15.8]} 41... h5 {[%clk 0:00:31.8]} 42. c5 {[%clk 0:02:14.3]} 42...
g5 {[%clk 0:00:30.3]} 43. d5+ {[%clk 0:02:11.9]} 43... Kf6 {[%clk 0:00:28.4]}
44. c6 {[%clk 0:02:08.1]} 44... Bd6 {[%clk 0:00:27.5]} 45. a3 {[%clk 0:02:07.3]}
45... g4 {[%clk 0:00:27.2]} 46. hxg4 {[%clk 0:02:06.7]} 46... hxg4 {[%clk
0:00:28.1]} 47. b4 {[%clk 0:02:07.4]} 47... axb4 {[%clk 0:00:28]} 48. axb4
{[%clk 0:02:07.9]} 48... g3 {[%clk 0:00:27.8]} 49. Kf3 {[%clk 0:02:08.1]} 49...
Ke7 {[%clk 0:00:26.1]} 50. b5 {[%clk 0:02:07.7]} 50... Kd8 {[%clk 0:00:26.6]}
51. b6 {[%clk 0:02:07.9]} 51... Kc8 {[%clk 0:00:26.9]} 52. Kg2 {[%clk
0:02:07.6]} 52... Kb8 {[%clk 0:00:26.6]} 53. Kf3 {[%clk 0:02:08.1]} 1/2-1/2

[Event "*** SCC Grand Prix: Titled Tuesday Blitz"]
[Site "Chess.com"]
[Date "2020.07.07"]
[Round "3"]
[White "Vitor-Moraes"]
[Black "VALPARAISO37"]
[Result "0-1"]
[WhiteElo "2003"]
[BlackElo "2292"]
[TimeControl "180+1"]
[EndTime "10:27:46 PDT"]
[Termination "VALPARAISO37 won by checkmate"]

1. e4 {[%clk 0:03:00.9]} 1... e5 {[%clk 0:02:59.6]} 2. Nf3 {[%clk 0:03:01.3]}
2... Nc6 {[%clk 0:02:59.9]} 3. Bb5 {[%clk 0:03:00.5]} 3... a6 {[%clk 0:03:00.1]}
4. Ba4 {[%clk 0:03:00.9]} 4... Nf6 {[%clk 0:02:59.5]} 5. O-O {[%clk 0:02:59.5]}
5... Bc5 {[%clk 0:02:59.9]} 6. Re1 {[%clk 0:02:57.2]} 6... b5 {[%clk 0:03:00]}
7. Bb3 {[%clk 0:02:56.6]} 7... d6 {[%clk 0:03:00.3]} 8. c3 {[%clk 0:02:56]} 8...
Bb6 {[%clk 0:02:57.7]} 9. d3 {[%clk 0:02:52.7]} 9... O-O {[%clk 0:02:55.8]} 10.
h3 {[%clk 0:02:50.6]} 10... h6 {[%clk 0:02:53.6]} 11. Nbd2 {[%clk 0:02:48.3]}
11... Re8 {[%clk 0:02:52.3]} 12. Nf1 {[%clk 0:02:48.8]} 12... Be6 {[%clk
0:02:52.5]} 13. Be3 {[%clk 0:02:49.2]} 13... Rb8 {[%clk 0:02:51.9]} 14. Bxb6
{[%clk 0:02:45.8]} 14... Rxb6 {[%clk 0:02:51.6]} 15. Bc2 {[%clk 0:02:44]} 15...
Ne7 {[%clk 0:02:49.4]} 16. d4 {[%clk 0:02:39.8]} 16... Ng6 {[%clk 0:02:49.4]}
17. dxe5 {[%clk 0:02:01.9]} 17... dxe5 {[%clk 0:02:46.9]} 18. Ne3 {[%clk
0:01:46.6]} 18... Rd6 {[%clk 0:02:45.3]} 19. Qe2 {[%clk 0:01:41.8]} 19... Nf4
{[%clk 0:02:44.4]} 20. Qf1 {[%clk 0:01:37.9]} 20... Nd7 {[%clk 0:02:39.4]} 21.
Nf5 {[%clk 0:01:33.8]} 21... Bxf5 {[%clk 0:02:16.9]} 22. exf5 {[%clk 0:01:34.7]}
22... Qa8 {[%clk 0:01:46.9]} 23. Bb3 {[%clk 0:01:15.6]} 23... Nxh3+ {[%clk
0:01:43.7]} 24. Kh2 {[%clk 0:01:08.3]} 24... Nf4 {[%clk 0:01:43]} 25. Rad1
{[%clk 0:01:01.4]} 25... e4 {[%clk 0:01:40.9]} 26. Nd4 {[%clk 0:00:46.4]} 26...
Nd3 {[%clk 0:01:35.2]} 27. Re3 {[%clk 0:00:27.1]} 27... c5 {[%clk 0:01:35.1]}
28. Ne2 {[%clk 0:00:18.7]} 28... c4 {[%clk 0:01:35.2]} 29. Bc2 {[%clk 0:00:18]}
29... Qb8 {[%clk 0:01:34.8]} 30. Ng3 {[%clk 0:00:14.5]} 30... Nf6 {[%clk
0:01:33.4]} 31. Rd2 {[%clk 0:00:11.3]} 31... Rdd8 {[%clk 0:01:33]} 32. Kh1
{[%clk 0:00:08.3]} 32... Ng4 {[%clk 0:01:26.9]} 33. Rxe4 {[%clk 0:00:08]} 33...
Rxe4 {[%clk 0:01:25.8]} 34. Nxe4 {[%clk 0:00:08.9]} 34... Qh2# {[%clk 0:01:25]}
0-1

[Event "*** SCC Grand Prix: Titled Tuesday Blitz"]
[Site "Chess.com"]
[Date "2020.07.07"]
[Round "3"]
[White "Gareth-Bale11"]
[Black "PIwan"]
[Result "0-1"]
[WhiteElo "2740"]
[BlackElo "2525"]
[TimeControl "180+1"]
[EndTime "10:27:47 PDT"]
[Termination "PIwan won by resignation"]

1. d4 {[%clk 0:03:00]} 1... d5 {[%clk 0:02:58.9]} 2. Nf3 {[%clk 0:02:59.3]} 2...
Nf6 {[%clk 0:02:58.6]} 3. Bf4 {[%clk 0:02:59.3]} 3... e6 {[%clk 0:02:58.3]} 4.
e3 {[%clk 0:02:59.1]} 4... Bd6 {[%clk 0:02:58.7]} 5. Bg3 {[%clk 0:02:59.3]} 5...
c5 {[%clk 0:02:58.4]} 6. c3 {[%clk 0:02:57.5]} 6... Qc7 {[%clk 0:02:58.6]} 7.
Nbd2 {[%clk 0:02:56.6]} 7... Nbd7 {[%clk 0:02:58.6]} 8. Rc1 {[%clk 0:02:52.3]}
8... O-O {[%clk 0:02:53.9]} 9. Be2 {[%clk 0:02:49.5]} 9... e5 {[%clk 0:02:49.8]}
10. dxc5 {[%clk 0:02:45.6]} 10... Nxc5 {[%clk 0:02:31.5]} 11. c4 {[%clk
0:02:41.6]} 11... e4 {[%clk 0:02:11.2]} 12. Nd4 {[%clk 0:02:40]} 12... Bxg3
{[%clk 0:02:09.5]} 13. hxg3 {[%clk 0:02:40.9]} 13... dxc4 {[%clk 0:01:55.6]} 14.
Nxc4 {[%clk 0:02:38.4]} 14... Qe7 {[%clk 0:01:51]} 15. O-O {[%clk 0:02:22.6]}
15... Rd8 {[%clk 0:01:49.5]} 16. Qc2 {[%clk 0:02:20.8]} 16... Bg4 {[%clk
0:01:43.6]} 17. Bxg4 {[%clk 0:01:55.3]} 17... Nxg4 {[%clk 0:01:44.5]} 18. Na5
{[%clk 0:01:56.2]} 18... Nd3 {[%clk 0:01:40.4]} 19. Qc7 {[%clk 0:01:13.4]} 19...
Qg5 {[%clk 0:01:37]} 20. Nxb7 {[%clk 0:01:06.7]} 20... Qh5 {[%clk 0:01:29.9]}
21. Rfd1 {[%clk 0:01:06.4]} 21... Rf8 {[%clk 0:00:55.6]} 22. Rxd3 {[%clk
0:01:00.9]} 22... Qh2+ {[%clk 0:00:47.5]} 23. Kf1 {[%clk 0:01:01.1]} 23... exd3
{[%clk 0:00:39.4]} 24. Ke1 {[%clk 0:01:00.7]} 24... Qg1+ {[%clk 0:00:31.4]} 25.
Kd2 {[%clk 0:00:58.9]} 25... Qxf2+ {[%clk 0:00:31.3]} 26. Kxd3 {[%clk
0:00:58.3]} 26... Qxe3+ {[%clk 0:00:28.9]} 27. Kc4 {[%clk 0:00:58.5]} 27... Rac8
{[%clk 0:00:28]} 0-1

[Event "*** SCC Grand Prix: Titled Tuesday Blitz"]
[Site "Chess.com"]
[Date "2020.07.07"]
[Round "3"]
[White "Herracek"]
[Black "if_name_main_a"]
[Result "1-0"]
[WhiteElo "2593"]
[BlackElo "2398"]
[TimeControl "180+1"]
[EndTime "10:27:53 PDT"]
[Termination "Herracek won by resignation"]

1. c4 {[%clk 0:03:00.9]} 1... c5 {[%clk 0:02:59.8]} 2. g3 {[%clk 0:03:00.1]}
2... Nc6 {[%clk 0:03:00.2]} 3. Bg2 {[%clk 0:03:01]} 3... g6 {[%clk 0:03:00.7]}
4. Nc3 {[%clk 0:03:01.4]} 4... Bg7 {[%clk 0:03:01.2]} 5. d3 {[%clk 0:03:02.1]}
5... e5 {[%clk 0:03:00.5]} 6. a3 {[%clk 0:03:01.7]} 6... Nge7 {[%clk 0:03:00.4]}
7. b4 {[%clk 0:03:02]} 7... d6 {[%clk 0:02:51.3]} 8. b5 {[%clk 0:03:01.6]} 8...
Nd4 {[%clk 0:02:46.9]} 9. e3 {[%clk 0:03:01.6]} 9... Ne6 {[%clk 0:02:46.2]} 10.
Nge2 {[%clk 0:03:01.8]} 10... O-O {[%clk 0:02:46.2]} 11. O-O {[%clk 0:03:01.6]}
11... f5 {[%clk 0:02:43.4]} 12. f4 {[%clk 0:03:01.6]} 12... exf4 {[%clk
0:02:37.1]} 13. gxf4 {[%clk 0:03:02.5]} 13... Nc7 {[%clk 0:02:29.2]} 14. Qb3
{[%clk 0:02:55.4]} 14... Rb8 {[%clk 0:02:18.2]} 15. Bb2 {[%clk 0:02:54.8]} 15...
Be6 {[%clk 0:02:17.2]} 16. e4 {[%clk 0:02:50.1]} 16... a6 {[%clk 0:02:02.7]} 17.
b6 {[%clk 0:02:40.4]} 17... Na8 {[%clk 0:02:02.3]} 18. Na4 {[%clk 0:02:40.5]}
18... Nc8 {[%clk 0:01:54.6]} 19. Bxg7 {[%clk 0:02:33]} 19... Kxg7 {[%clk
0:01:54.5]} 20. Rab1 {[%clk 0:02:32.7]} 20... Bd7 {[%clk 0:01:50.7]} 21. Nec3
{[%clk 0:02:24.5]} 21... Bc6 {[%clk 0:01:48.1]} 22. Nd5 {[%clk 0:02:18.1]} 22...
Bxd5 {[%clk 0:01:32.4]} 23. cxd5 {[%clk 0:02:19]} 23... Qf6 {[%clk 0:01:32.2]}
24. Qc4 {[%clk 0:02:09.8]} 24... Qd8 {[%clk 0:01:28]} 25. Qc3+ {[%clk
0:01:48.1]} 25... Kg8 {[%clk 0:01:25.8]} 26. Qb2 {[%clk 0:01:48]} 26... Qd7
{[%clk 0:01:24.2]} 27. Qb3 {[%clk 0:01:47.7]} 27... Qg7 {[%clk 0:01:24.2]} 28.
Qc4 {[%clk 0:01:42.4]} 28... fxe4 {[%clk 0:01:15.2]} 29. dxe4 {[%clk 0:01:41.1]}
29... Qh6 {[%clk 0:01:14.6]} 30. e5 {[%clk 0:01:39.2]} 30... dxe5 {[%clk
0:01:14.3]} 31. d6+ {[%clk 0:01:37.4]} 31... Kg7 {[%clk 0:01:09.6]} 32. fxe5
{[%clk 0:01:34.6]} 32... Qe3+ {[%clk 0:01:07.9]} 33. Kh1 {[%clk 0:01:34.8]}
33... Qxe5 {[%clk 0:00:56]} 34. Rxf8 {[%clk 0:01:32.4]} 34... Kxf8 {[%clk
0:00:56.6]} 35. Rf1+ {[%clk 0:01:32.1]} 35... Kg7 {[%clk 0:00:54.2]} 36. Qf7+
{[%clk 0:01:31.9]} 36... Kh6 {[%clk 0:00:53.3]} 37. Qf8+ {[%clk 0:01:31.6]}
37... Qg7 {[%clk 0:00:44.6]} 38. d7 {[%clk 0:01:20.5]} 38... Ncxb6 {[%clk
0:00:20.4]} 39. Qxb8 {[%clk 0:01:19.3]} 39... Nxa4 {[%clk 0:00:21]} 1-0